bitfinex/quotes_SOLUSD_20250424
["timestamp","ask_amount","ask_price","bid_price","bid_amount"]
[1745453328177,8.22215661,151.2,151.13,26.14216157]
[1745453328371,8.22215661,151.2,151.12,6.68013775]
[1745453328372,24.75654814,151.2,151.14,26.0]
[1745453329391,24.75654814,151.2,151.15,4.93723742]
[1745453329902,1.6084,151.2,151.15,4.93723742]
[1745453330195,8.22230035,151.2,151.16,4.93723742]
[1745453331084,8.22230035,151.2,151.17,4.93723742]
[1745453331969,8.22230035,151.2,151.14,33.93899491]
[1745453332598,8.22230035,151.2,151.14,27.32292469]
[1745453332783,8.22230035,151.2,151.14,33.93930059]
[1745453332986,8.22230035,151.2,151.15,4.93484637]
[1745453333997,8.22230035,151.2,151.16,4.93484637]
[1745453334585,8.22230035,151.2,151.17,4.93484637]
[1745453335279,8.22230035,151.2,151.14,26.0]
[1745453335873,8.22230035,151.2,151.15,4.93375322]
[1745453336072,24.75669188,151.2,151.15,4.93375322]
[1745453336803,24.75669188,151.2,151.14,26.0]
[1745453337306,8.22230035,151.2,151.14,32.6162997]
[1745453337510,1.6084,151.2,151.15,1.46504132]
[1745453337797,0.063,151.2,151.19,26.0]
[1745453338878,0.063,151.2,151.19,30.93056811]
[1745453339501,0.063,151.2,151.19,4.93056811]
[1745453340899,0.063,151.2,151.19,30.93056811]
[1745453345896,0.063,151.2,151.19,4.93056811]
[1745453346204,0.063,151.2,151.16,13.32]
[1745453346507,0.063,151.2,151.16,39.32]
[1745453346805,0.063,151.2,151.17,4.93093992]
[1745453347610,0.063,151.2,151.16,26.0]
[1745453348308,1.681,151.2,151.13,8.08151757]
[1745453348611,1.681,151.2,151.15,26.0]
[1745453349503,1.681,151.2,151.16,4.93024804]
[1745453349707,6.61419406,151.19,151.16,4.93024804]
[1745453350404,6.61419406,151.19,151.15,26.0]
[1745453350707,6.61419406,151.19,151.12,13.52516157]
[1745453350912,6.61419406,151.19,151.13,26.0]
[1745453351088,6.61419406,151.19,151.14,4.92966383]
[1745453351790,23.14967921,151.19,151.14,4.92966383]
[1745453351989,23.14967921,151.19,151.12,13.383]
[1745453352423,23.14967921,151.19,151.13,4.92877566]
[1745453353218,23.14967921,151.19,151.12,13.383]
[1745453354921,23.14967921,151.19,151.13,4.92846645]
[1745453356009,6.61419406,151.19,151.12,13.383]
[1745453357316,6.61419406,151.19,151.12,20.00011247]
[1745453357706,6.61419406,151.19,151.12,13.383]
[1745453358218,6.61419406,151.19,151.13,4.93144866]
[1745453358828,23.14967921,151.19,151.12,13.383]
[1745453360498,23.14967921,151.19,151.13,4.93371142]
[1745453361203,23.14967921,151.19,151.14,4.93371142]
[1745453362027,23.14967921,151.19,151.13,4.93371142]
[1745453362631,6.61419406,151.19,151.13,4.93371142]
[1745453362999,6.61419406,151.19,151.14,4.93371142]
[1745453363821,6.61419406,151.19,151.15,4.93371142]
[1745453364923,6.61419406,151.19,151.13,4.93371142]
[1745453365131,8.078,151.2,151.14,26.0]
[1745453365132,8.2949373,151.2,151.14,26.0]
[1745453365714,8.2949373,151.2,151.16,26.0]
[1745453366839,8.2949373,151.2,151.17,4.93371142]
[1745453368131,0.063,151.2,151.17,4.93371142]
[1745453368827,0.063,151.2,151.18,4.93371142]
[1745453370233,0.063,151.2,151.16,33.93835625]
[1745453370541,0.063,151.2,151.16,27.32288064]
[1745453370707,0.063,151.2,151.16,26.0]
[1745453371114,0.063,151.2,151.17,4.93588746]
[1745453371836,0.063,151.2,151.18,4.93588746]
[1745453372835,0.063,151.2,151.16,26.0]
[1745453373749,0.063,151.2,151.17,4.93622588]
[1745453374645,0.063,151.2,151.18,4.93622588]
[1745453375457,0.063,151.2,151.16,26.0]
[1745453376020,0.063,151.2,151.17,4.93608308]
[1745453377035,0.063,151.2,151.15,26.0]
[1745453377937,0.063,151.2,151.16,4.9367597]
[1745453379028,0.063,151.2,151.13,26.0]
[1745453380254,0.063,151.2,151.14,4.93682296]
[1745453381042,0.063,151.2,151.15,4.93682296]
[1745453381748,0.063,151.2,151.16,4.93682296]
[1745453382048,18.64964886,151.18,151.16,4.93682296]
[1745453382629,18.64964886,151.18,151.13,4.93682296]
[1745453383161,23.15274193,151.17,151.13,4.93682296]
[1745453384354,23.15274193,151.17,151.12,0.063]
[1745453387561,18.64964886,151.16,151.12,0.063]
[1745453389536,23.15580548,151.15,151.12,0.063]
[1745453391751,16.53986106,151.15,151.12,0.063]
[1745453391956,18.64964886,151.14,151.12,0.063]
[1745453393757,6.61681995,151.13,151.12,0.063]
[1745453400135,25.26646881,151.13,151.12,0.063]
[1745453400335,18.64964886,151.12,151.08,0.063]
[1745453404463,23.161935,151.11,151.08,0.063]
[1745453405367,6.61769571,151.11,151.08,0.063]
[1745453406643,6.61681995,151.13,151.08,0.063]
[1745453407464,23.15886984,151.13,151.08,0.063]
[1745453412685,18.64964886,151.12,151.08,0.063]
[1745453415091,18.64964886,151.1,151.08,0.063]
[1745453417690,6.61857171,151.09,151.08,0.063]
[1745453422967,6.6172578,151.12,151.08,0.063]
[1745453427995,6.6172578,151.12,151.09,4.94079203]
[1745453429304,6.6172578,151.12,151.08,0.063]
[1745453430504,6.6172578,151.12,151.09,4.94389056]
[1745453431501,6.6172578,151.12,151.08,0.063]
[1745453433303,6.6172578,151.12,151.09,4.94618268]
[1745453434511,6.6172578,151.12,151.1,4.94618268]
[1745453435707,6.6172578,151.12,151.09,4.94618268]
[1745453435905,23.16040232,151.12,151.09,4.94618268]
[1745453436410,23.16040232,151.12,151.08,0.063]
[1745453440717,6.61813368,151.1,151.08,0.063]
[1745453447714,6.61813368,151.1,151.08,9.9259803]
[1745453448700,6.61813368,151.1,151.08,0.063]
[1745453450116,28.51262916,151.09,151.08,0.063]
[1745453450622,18.64964886,151.09,151.08,0.063]
[1745453452244,25.26822057,151.09,151.08,0.063]
[1745453453921,35.13120087,151.09,151.08,0.063]
[1745453454103,35.13120087,151.09,151.08,1e-08]
[1745453455811,35.13120087,151.09,151.07,1e-08]
[1745453456123,28.51262916,151.08,151.07,1e-08]
[1745453456895,28.65479073,151.08,151.07,1e-08]
[1745453457799,35.27380052,151.08,151.07,1e-08]
[1745453459330,0.14216157,151.06,151.03,0.03]
[1745453459501,18.64964886,151.04,151.03,0.03]
[1745453460117,25.27041157,151.04,151.03,0.03]
[1745453460308,35.13339187,151.04,151.03,0.03]
[1745453460703,51.68529864,151.04,151.01,0.063]
[1745453460925,9.8629803,151.02,151.01,0.063]
[1745453461126,9.8629803,151.02,150.99,0.03]
[1745453461422,9.8629803,151.01,150.99,0.03]
[1745453461623,28.51262916,151.0,150.99,0.03]
[1745453462023,25.27216541,151.0,150.99,0.03]
[1745453462529,35.13514571,151.0,150.99,0.03]
[1745453463514,18.64964886,150.99,150.97,0.063]
[1745453463733,28.51262916,150.99,150.97,0.063]
[1745453464113,35.13558432,150.99,150.97,0.063]
[1745453464519,28.51262916,150.98,150.97,0.063]
[1745453467031,35.13602298,150.98,150.97,0.063]
[1745453467327,25.27304268,150.98,150.97,0.063]
[1745453468816,35.13602298,150.98,150.97,0.063]
[1745453470621,6.62339382,150.98,150.97,0.063]
[1745453470827,6.62339382,150.98,150.97,9.9259803]
[1745453471135,6.62339382,150.98,150.97,0.063]
[1745453472040,6.62339382,150.98,150.97,9.9259803]
[1745453473017,6.62251655,151.0,150.97,9.9259803]
[1745453473245,6.62163951,151.02,150.99,9.8629803]
[1745453473426,6.62163951,151.02,151.0,9.8629803]
[1745453474782,23.17522327,151.03,151.0,9.8629803]
[1745453475152,23.17522327,151.03,150.99,9.8629803]
[1745453476144,33.03820357,151.03,150.98,9.8629803]
[1745453477265,9.8629803,151.01,150.97,0.063]
[1745453477550,9.8629803,151.0,150.97,0.063]
[1745453478057,9.8629803,151.01,150.97,0.063]
[1745453478426,9.8629803,151.0,150.97,0.063]
[1745453479332,16.48593546,150.99,150.97,0.063]
[1745453479534,9.8629803,150.98,150.97,0.063]
[1745453480567,16.48637412,150.98,150.97,0.063]
[1745453481466,6.62339382,150.98,150.97,0.063]
[1745453483762,25.27260402,150.99,150.97,0.063]
[1745453483940,35.13558432,150.99,150.97,0.063]
[1745453484835,25.27260402,150.99,150.97,0.063]
[1745453485038,6.62295516,150.99,150.97,0.063]
[1745453485340,6.62295516,150.99,150.97,9.9259803]
[1745453485742,6.622078,151.01,150.98,9.8629803]
[1745453485944,6.622078,151.01,151.0,9.8629803]
[1745453486561,6.622078,151.01,150.99,9.8629803]
[1745453486959,6.622078,151.01,150.98,9.8629803]
[1745453487680,23.17727302,151.01,150.97,9.9259803]
[1745453489275,33.04025332,151.01,150.97,0.063]
[1745453489471,28.51262916,151.0,150.97,0.063]
[1745453489865,18.64964886,151.0,150.97,0.063]
[1745453490070,28.51262916,151.0,150.97,0.063]
[1745453490889,18.64964886,151.0,150.97,0.063]
[1745453491184,18.64964886,151.0,150.97,9.9259803]
[1745453491380,6.62295516,150.99,150.97,0.063]
[1745453507306,26.41817532,151.01,150.97,0.063]
[1745453507307,16.55519502,151.01,150.98,9.8629803]
[1745453507494,16.55519502,151.01,150.99,9.8629803]
[1745453507700,16.55519502,151.01,150.98,9.8629803]
[1745453510590,49.17727302,151.01,150.97,9.9259803]
[1745453510797,49.17727302,151.01,150.98,9.8629803]
[1745453510974,49.17727302,151.01,150.97,9.9259803]
[1745453513889,49.17727302,151.01,150.98,9.8629803]
[1745453514791,49.17727302,151.01,151.0,9.8629803]
[1745453514792,32.622078,151.01,151.0,9.8629803]
[1745453514980,6.622078,151.01,151.0,9.8629803]
[1745453515179,26.0,151.04,151.0,9.8629803]
[1745453515180,6.62076271,151.04,151.0,9.8629803]
[1745453515395,32.62076271,151.04,151.03,9.8629803]
[1745453516598,32.62076271,151.04,151.02,9.8629803]
[1745453517607,0.063,151.07,151.03,17.6447803]
[1745453517905,0.063,151.1,151.07,0.14216157]
[1745453518081,0.063,151.1,151.09,9.8629803]
[1745453518677,0.063,151.1,151.04,39.4519212]
[1745453518918,9.9259803,151.1,151.05,9.8629803]
[1745453519083,9.9259803,151.1,151.03,7.7818]
[1745453519403,32.68113368,151.1,151.06,9.8629803]
[1745453520105,32.68113368,151.1,151.07,9.8629803]
[1745453520611,32.68113368,151.1,151.06,9.8629803]
[1745453521388,32.68113368,151.1,151.06,15.41128416]
[1745453522283,18.64964886,151.09,151.06,15.41128416]
[1745453522611,15.41128416,151.08,151.03,15.41128416]
[1745453522795,34.06093302,151.09,151.04,15.41128416]
[1745453523197,18.64964886,151.09,151.05,15.41128416]
[1745453523919,34.06093302,151.09,151.04,15.41128416]
[1745453524086,6.61900979,151.08,151.04,15.41128416]
[1745453524294,6.61900979,151.08,151.05,15.41128416]
[1745453525986,6.61900979,151.08,151.04,15.41128416]
[1745453527114,23.16653428,151.08,151.04,15.41128416]
[1745453527792,23.16653428,151.08,151.05,15.41128416]
[1745453528920,23.16653428,151.08,151.06,15.41128416]
[1745453531214,23.16653428,151.08,151.05,15.41128416]
[1745453532024,23.16653428,151.08,151.06,15.41128416]
[1745453533424,6.61900979,151.08,151.06,15.41128416]
[1745453533599,6.61900979,151.08,151.07,15.41128416]
[1745453534525,26.0,151.08,151.07,15.41128416]
[1745453535031,26.0,151.08,151.06,15.41128416]
[1745453535325,26.0,151.08,151.0,0.14216157]
[1745453535326,26.0,151.08,151.05,15.41128416]
[1745453535534,26.0,151.08,151.02,15.41128416]
[1745453535535,34.06093302,151.07,151.02,15.41128416]
[1745453535834,34.06093302,151.07,150.99,1.6502]
[1745453535835,18.64964886,151.04,150.99,1.6502]
[1745453536004,18.64964886,151.04,151.0,15.41128416]
[1745453536198,18.64964886,151.04,150.97,0.063]
[1745453536400,18.64964886,151.04,151.0,15.41128416]
[1745453536600,23.17420379,151.03,150.99,15.41128416]
[1745453537821,23.17420379,151.03,151.0,15.41128416]
[1745453539902,23.17420379,151.03,150.99,15.41128416]
[1745453540103,18.64964886,151.02,150.99,15.41128416]
[1745453540831,60.06093302,151.02,150.97,15.47428416]
[1745453541134,18.64964886,151.0,150.97,0.063]
[1745453541301,18.64964886,150.98,150.97,0.063]
[1745453542032,25.27304268,150.98,150.97,0.063]
[1745453544524,35.15201268,150.98,150.97,0.063]
[1745453546533,25.27304268,150.98,150.97,0.063]
[1745453547933,35.15201268,150.98,150.97,0.063]
[1745453548437,25.41520425,150.98,150.97,1e-08]
[1745453548626,35.29417425,150.98,150.97,1e-08]
[1745453555437,35.29417425,150.98,150.96,1e-08]
[1745453555645,28.67078043,150.97,150.96,1e-08]
[1745453556519,35.29461297,150.97,150.96,1e-08]
[1745453557366,28.52861886,150.94,150.92,0.063]
[1745453557528,18.64964886,150.92,150.9,0.03]
[1745453557730,28.52861886,150.92,150.9,0.03]
[1745453559051,25.27611496,150.91,150.9,0.03]
[1745453562235,35.15508496,150.91,150.9,0.03]
[1745453563227,51.86341179,150.91,150.88,0.03]
[1745453563562,18.64964886,150.89,150.88,0.03]
[1745453564143,18.64964886,150.9,150.88,9.90897]
[1745453564344,18.64964886,150.9,150.88,0.03]
[1745453565564,6.62734442,150.89,150.88,0.03]
[1745453574243,6.62734442,150.89,150.88,9.90897]
[1745453575341,23.19263136,150.91,150.88,9.90897]
[1745453577168,23.19263136,150.91,150.88,0.03]
[1745453580644,28.52861886,150.9,150.88,0.03]
[1745453581842,9.87897,150.89,150.87,1e-08]
[1745453582047,54.52861886,150.88,150.87,1e-08]
[1745453583068,61.15640252,150.88,150.87,1e-08]
[1745453584154,61.29856409,150.88,150.87,1e-08]
[1745453606282,25.27743252,150.88,150.87,1e-08]
[1745453607986,25.27743252,150.88,150.87,9.87897001]
[1745453610461,6.62778366,150.88,150.87,9.87897001]
[1745453612272,6.62690523,150.9,150.87,9.87897001]
[1745453612582,6.62690523,150.9,150.89,9.87897]
[1745453613471,6.62690523,150.9,150.88,9.87897]
[1745453613669,23.19416831,150.9,150.87,9.87897001]
[1745453614072,23.19416831,150.9,150.87,1e-08]
[1745453615772,33.07313831,150.9,150.87,1e-08]
[1745453616862,23.19416831,150.9,150.87,1e-08]
[1745453617280,23.19416831,150.9,150.87,9.87897001]
[1745453618096,23.19416831,150.9,150.88,9.87897]
[1745453620089,23.19416831,150.9,150.87,9.87897001]
[1745453622571,23.19416831,150.9,150.87,1e-08]
[1745453625978,23.19416831,150.9,150.87,9.87897001]
[1745453628675,23.19416831,150.9,150.87,1e-08]
[1745453630274,28.52861886,150.89,150.87,1e-08]
[1745453632198,25.27743252,150.88,150.87,1e-08]
[1745453635388,35.15640252,150.88,150.87,1e-08]
[1745453638116,35.29856409,150.88,150.87,1e-08]
[1745453638411,87.91444409,150.88,150.87,1e-08]
[1745453638592,89.47194409,150.88,150.87,1e-08]
[1745453640994,49.95606409,150.88,150.87,1e-08]
[1745453642119,89.47194409,150.88,150.87,1e-08]
[1745453642443,49.95606409,150.88,150.87,1e-08]
[1745453643611,26.0,150.78,150.75,6.1591]
[1745453643818,44.64964886,150.78,150.77,1.9]
[1745453644120,44.64964886,150.78,150.73,11.50237]
[1745453644121,23.21570707,150.76,150.73,11.50237]
[1745453646215,6.63261922,150.77,150.75,9.87897]
[1745453646512,32.63261922,150.77,150.75,9.87897]
[1745453647913,32.63261922,150.77,150.76,9.87897]
[1745453649912,32.63261922,150.77,150.73,1.6234]
[1745453650114,32.63261922,150.77,150.76,9.87897]
[1745453650316,32.63261922,150.77,150.73,1.6234]
[1745453650615,32.63261922,150.77,150.75,9.87897]
[1745453651521,26.0,150.74,150.71,0.03]
[1745453651729,26.0,150.73,150.71,0.03]
[1745453652606,6.63481953,150.72,150.71,0.03]
[1745453653609,6.63481953,150.72,150.71,9.90897]
[1745453655601,6.63481953,150.72,150.71,0.03]
[1745453655905,6.63481953,150.72,150.71,9.90897]
[1745453657308,6.63481953,150.72,150.71,0.03]
[1745453659320,16.51378953,150.72,150.71,0.03]
[1745453659741,6.63481953,150.72,150.71,0.03]
[1745453660111,35.16343839,150.72,150.71,1e-08]
[1745453660622,25.28446839,150.72,150.71,1e-08]
[1745453663032,35.16343839,150.72,150.71,1e-08]
[1745453665229,25.28446839,150.72,150.71,1e-08]
[1745453665728,51.28446839,150.72,150.71,1e-08]
[1745453667225,6.63481953,150.72,150.71,9.87897001]
[1745453668534,23.21753903,150.75,150.71,9.87897001]
[1745453668852,23.21753903,150.75,150.72,9.87897]
[1745453670121,23.21753903,150.75,150.73,9.87897]
[1745453670418,23.21753903,150.75,150.72,9.87897]
[1745453671640,23.21753903,150.75,150.71,9.87897001]
[1745453673441,6.63437935,150.73,150.71,9.87897001]
[1745453673740,6.63437935,150.73,150.71,1e-08]
[1745453673741,18.64964886,150.72,150.71,1e-08]
[1745453673943,18.64964886,150.68,150.64,0.03]
[1745453674146,9.87897,150.66,150.64,0.03]
[1745453674328,18.64964886,150.68,150.64,0.03]
[1745453674525,9.87897,150.67,150.64,0.03]
[1745453675549,6.63746183,150.66,150.64,0.03]
[1745453676645,28.52861886,150.65,150.64,1e-08]
[1745453677465,28.67078043,150.65,150.64,1e-08]
[1745453677630,35.16652128,150.65,150.64,1e-08]
[1745453679124,25.28755128,150.65,150.64,1e-08]
[1745453679743,35.16652128,150.65,150.64,1e-08]
[1745453680353,16.59012705,150.7,150.64,9.87897001]
[1745453680560,23.22186836,150.72,150.69,9.87897]
[1745453680730,23.22186836,150.72,150.7,9.87897]
[1745453680928,23.22186836,150.72,150.71,9.87897]
[1745453681342,6.63393923,150.74,150.71,9.87897]
[1745453681548,6.63393923,150.74,150.7,9.87897]
[1745453681731,23.21878731,150.74,150.7,9.87897]
[1745453681932,33.09775731,150.74,150.69,9.87897]
[1745453682133,18.64964886,150.73,150.69,9.87897]
[1745453683349,6.63481953,150.72,150.69,15.48743424]
[1745453683552,23.22186836,150.72,150.69,15.48743424]
[1745453686338,23.22186836,150.72,150.68,15.48743424]
[1745453687558,34.1370831,150.71,150.66,15.48743424]
[1745453688237,15.48743424,150.7,150.65,17.04663424]
[1745453689858,23.22649147,150.69,150.65,15.48743424]
[1745453690856,23.22649147,150.69,150.67,15.48743424]
[1745453691060,23.22649147,150.69,150.68,15.48743424]
[1745453691559,23.22649147,150.69,150.67,15.48743424]
[1745453691943,16.59035105,150.69,150.67,15.48743424]
[1745453692733,16.59035105,150.69,150.66,15.48743424]
[1745453697082,16.59035105,150.69,150.67,15.48743424]
[1745453698577,16.59035105,150.69,150.66,15.48743424]
[1745453698981,16.59035105,150.69,150.61,2.8394733]
[1745453699165,16.59035105,150.69,150.65,15.48743424]
[1745453699656,16.59035105,150.69,150.66,15.48743424]
[1745453700873,26.0,150.67,150.66,15.48743424]
[1745453702259,23.23111641,150.66,150.61,1.5121]
[1745453702670,15.48743424,150.65,150.59,15.48743424]
[1745453702868,15.48743424,150.65,150.6,15.48743424]
[1745453703465,38.71855065,150.66,150.6,15.48743424]
[1745453703681,38.71855065,150.66,150.57,9.49547198]
[1745453703682,38.71855065,150.66,150.61,15.48743424]
[1745453703979,26.0,150.62,150.57,8.168]
[1745453704153,26.0,150.62,150.59,15.48743424]
[1745453704360,6.63966536,150.61,150.59,15.48743424]
[1745453705358,6.63966536,150.61,150.59,9.92520183]
[1745453706082,23.23637243,150.63,150.59,9.92520183]
[1745453707166,23.23637243,150.63,150.6,9.92520183]
[1745453709764,6.63878377,150.63,150.62,9.92520183]
[1745453710878,23.23218023,150.66,150.62,9.92520183]
[1745453711085,23.23218023,150.66,150.63,9.92520183]
[1745453714487,23.23218023,150.66,150.58,1.32793596]
[1745453714782,23.2357432,150.63,150.58,9.92520183]
[1745453714999,33.16094503,150.63,150.57,8.168]
[1745453715171,9.92520183,150.62,150.57,1.5056]
[1745453715574,33.16094503,150.63,150.58,9.92520183]
[1745453715964,33.16094503,150.63,150.57,1.5056]
[1745453716185,33.16094503,150.63,150.58,9.92520183]
[1745453717295,38.74622368,150.63,150.58,15.51048048]
[1745453717600,6.63966536,150.61,150.57,15.51048048]
[1745453717900,23.23882876,150.61,150.54,27.35811309]
[1745453718098,23.23882876,150.61,150.57,15.51048048]
[1745453718563,23.23882876,150.61,150.54,27.35811309]
[1745453718763,23.23882876,150.61,150.56,15.51048048]
[1745453718985,23.23882876,150.61,150.54,26.03]
[1745453719189,38.74930924,150.61,150.54,26.03]
[1745453719411,38.74930924,150.61,150.56,15.51048048]
[1745453720775,38.74930924,150.61,150.54,26.03]
[1745453721174,38.74930924,150.61,150.56,15.51048048]
[1745453722519,34.16012934,150.6,150.54,0.03]
[1745453722701,34.16012934,150.6,150.55,15.51048048]
[1745453723695,15.51048048,150.56,150.54,0.03]
[1745453723991,38.75548279,150.57,150.54,0.03]
[1745453724773,23.24500231,150.57,150.54,15.54048048]
[1745453725010,6.64142923,150.57,150.55,15.51048048]
[1745453725706,6.64142923,150.57,150.56,15.51048048]
[1745453726005,23.2367959,150.63,150.57,6.6196]
[1745453726206,23.2367959,150.63,150.6,15.51048048]
[1745453726717,23.2367959,150.63,150.59,15.51048048]
[1745453727530,34.16012934,150.62,150.55,2.90671825]
[1745453727706,34.16012934,150.62,150.57,15.51048048]
[1745453728116,23.23882876,150.61,150.57,15.51048048]
[1745453729319,23.23882876,150.61,150.56,15.51048048]
[1745453729320,38.74930924,150.61,150.56,15.51048048]
[1745453729508,34.16012934,150.6,150.54,0.03]
[1745453729819,18.64964886,150.6,150.56,15.51048048]
[1745453730120,23.24191513,150.59,150.56,15.51048048]
[1745453731823,23.24191513,150.59,150.57,15.51048048]
[1745453731999,23.24191513,150.59,150.58,15.51048048]
[1745453733514,23.24191513,150.59,150.57,15.51048048]
[1745453734218,41.88847762,150.61,150.57,15.51048048]
[1745453734420,41.88847762,150.61,150.58,15.51048048]
[1745453734624,23.23882876,150.61,150.54,0.03]
[1745453735019,23.23882876,150.61,150.58,15.51048048]
[1745453736299,6.63966536,150.61,150.6,15.51048048]
[1745453736704,6.63966536,150.61,150.59,15.51048048]
[1745453736925,6.63966536,150.61,150.6,15.51048048]
[1745453738024,18.64964886,150.59,150.54,0.03]
[1745453738201,34.16012934,150.59,150.54,15.54048048]
[1745453738401,6.64098817,150.58,150.55,15.51048048]
[1745453739326,6.64098817,150.58,150.56,15.51048048]
[1745453739717,6.64098817,150.58,150.57,15.51048048]
[1745453740319,23.23818864,150.62,150.57,15.51048048]
[1745453740507,23.23818864,150.62,150.54,27.35819039]
[1745453740714,23.23818864,150.62,150.58,15.51048048]
[1745453741731,23.23818864,150.62,150.54,27.35819039]
[1745453741934,23.23818864,150.62,150.58,15.51048048]
[1745453743217,23.23818864,150.62,150.6,15.51048048]
[1745453743415,23.22879435,150.68,150.61,15.51048048]
[1745453743730,23.21724709,150.75,150.67,15.51048048]
[1745453744040,23.21724709,150.75,150.71,15.51048048]
[1745453744211,49.21724709,150.75,150.71,15.51048048]
[1745453744406,10.237414,150.8,150.74,15.51048048]
[1745453744610,10.237414,150.8,150.75,15.51048048]
[1745453744819,6.63232548,150.78,150.75,15.51048048]
[1745453745017,10.237414,150.8,150.75,15.65264205]
[1745453745223,10.237414,150.8,150.76,0.14216157]
[1745453745535,10.237414,150.8,150.78,15.51048048]
[1745453746210,0.063,150.82,150.78,15.65264205]
[1745453747330,0.063,150.82,150.79,0.14216157]
[1745453747627,0.063,150.82,150.81,24.87484105]
[1745453747812,0.063,150.82,150.81,24.73267948]
[1745453748916,0.063,150.82,150.8,24.73267948]
[1745453749230,0.063,150.82,150.79,24.73267948]
[1745453749432,0.063,150.82,150.77,26.0]
[1745453749633,0.063,150.82,150.78,24.73267948]
[1745453750031,0.063,150.82,150.79,24.73267948]
[1745453750324,0.063,150.82,150.78,24.73267948]
[1745453750526,24.73267948,150.81,150.76,24.73267948]
[1745453751022,24.79567948,150.82,150.76,24.73267948]
[1745453751334,6.69342036,150.82,150.77,24.73267948]
[1745453751637,24.73267948,150.81,150.76,24.73267948]
[1745453751824,24.73267948,150.8,150.74,24.73267948]
[1745453752030,24.73267948,150.79,150.74,24.73267948]
[1745453752341,24.73267948,150.8,150.75,24.73267948]
[1745453752571,6.69342036,150.82,150.77,24.73267948]
[1745453752712,6.69342036,150.82,150.78,24.73267948]
[1745453753332,16.63905092,150.82,150.78,24.73267948]
[1745453754040,16.63905092,150.82,150.77,24.73267948]
[1745453754245,41.3717304,150.82,150.77,24.73267948]
[1745453754539,24.73267948,150.79,150.74,24.73267948]
[1745453755039,24.73267948,150.81,150.76,24.73267948]
[1745453755214,24.73267948,150.8,150.75,24.73267948]
[1745453755418,6.6317395,150.79,150.75,24.73267948]
[1745453756136,47.94376774,150.79,150.74,24.73267948]
[1745453756344,24.73267948,150.78,150.73,24.73267948]
[1745453756841,24.73267948,150.77,150.72,24.73267948]
[1745453757430,6.63305916,150.76,150.72,24.73267948]
[1745453757847,23.21570707,150.76,150.72,24.73267948]
[1745453758344,23.21570707,150.76,150.7,13.52]
[1745453758345,24.73267948,150.75,150.7,24.73267948]
[1745453758828,24.73267948,150.75,150.68,6.4039]
[1745453759030,24.73267948,150.75,150.7,24.73267948]
[1745453759234,23.21878731,150.74,150.7,24.73267948]
[1745453759663,23.21878731,150.74,150.71,24.73267948]
[1745453760124,6.63393923,150.74,150.71,24.73267948]
[1745453760319,6.63393923,150.74,150.72,24.73267948]
[1745453760638,6.63393923,150.74,150.73,24.73267948]
[1745453761239,23.21497033,150.77,150.72,24.73267948]
[1745453761645,6.63261922,150.77,150.75,24.73267948]
[1745453761841,6.6317395,150.79,150.76,24.73267948]
[1745453763350,23.21048425,150.8,150.76,24.73267948]
[1745453763561,47.94316373,150.8,150.75,24.73267948]
[1745453763847,47.94316373,150.8,150.79,24.73267948]
[1745453763848,6.63129973,150.8,150.79,24.73267948]
[1745453764152,6.69381289,150.82,150.79,24.73267948]
[1745453764757,6.69381289,150.82,150.78,24.73267948]
[1745453765050,0.063,150.82,150.78,24.73267948]
[1745453766637,0.063,150.82,150.79,26.05877775]
[1745453769653,0.063,150.82,150.78,24.73267948]
[1745453769949,0.063,150.82,150.79,24.73267948]
[1745453771047,0.063,150.82,150.78,24.73267948]
[1745453771248,0.063,150.82,150.77,1.3260318]
[1745453771454,0.063,150.82,150.8,15.46624495]
[1745453772042,0.063,150.82,150.79,15.46624495]
[1745453772328,0.063,150.82,150.78,15.46624495]
[1745453773250,15.46624495,150.81,150.75,16.79227847]
[1745453773453,6.63129973,150.8,150.76,15.46624495]
[1745453773828,23.20954906,150.8,150.76,15.46624495]
[1745453775761,16.57824933,150.8,150.76,15.46624495]
[1745453776132,32.04449428,150.8,150.75,15.46624495]
[1745453777334,15.46624495,150.79,150.74,16.79256615]
[1745453777535,15.46624495,150.77,150.72,15.46624495]
[1745453777742,15.46624495,150.76,150.71,16.79287015]
[1745453777943,6.63349917,150.75,150.71,15.46624495]
[1745453778154,15.46624495,150.74,150.69,16.79293635]
[1745453778332,15.46624495,150.74,150.69,15.46624495]
[1745453779354,15.46624495,150.74,150.7,15.46624495]